[Event "American Cup Champions 2022"]
[Site "Saint Louis"]
[Date "2022.04.21"]
[Round "1.2"]
[White "Robson, Ray"]
[Black "Aronian, Levon"]
[Result "1-0"]
[ECO "A29"]
[WhiteElo "2676"]
[BlackElo "2772"]
[Annotator "TA"]
[PlyCount "145"]
[EventDate "2022.04.20"]
[EventType "k.o."]
[EventCountry "USA"]
[SourceTitle "playchess.com"]
[Source "ChessBase"]
[SourceQuality "1"]
[TimeControl "5400+30"]

{[%evp 20,145,19,0,46,27,45,46,38,11,15,15,10,9,41,52,34,38,188,168,179,183,162,175,244,229,257,190,186,187,170,160,183,187,187,188,175,176,212,216,231,232,229,201,240,238,231,223,289,298,297,312,395,402,391,385,393,377,462,479,447,426,1052,910,892,996,594,937,815,516,853,513,570,540,571,566,556,542,527,535,499,493,467,426,381,287,423,333,422,363,354,0,476,450,354,430,352,214,490,440,1251,1528,1603,1534,1345,1292,1711,1410,1385,0,1385,1385,1094,811,29972,29972,29976,29977,29977,29978,29978,29979,29979,29980,29980,29981,29980,29979]} 1. c4 {[%emt 0:00:02]} Nf6 {[%emt 0:00:11]} 2. g3 {[%emt 0:00:10]} e5 {[%emt 0:01:36]} 3. Bg2 {[%emt 0:00:13]} d5 {[%emt 0:00:06]} 4. cxd5 {[%emt 0:00:06]} Nxd5 {[%emt 0:00:03]} 5. Nc3 {[%emt 0:00:46]} Nb6 {[%emt 0:00:06]} 6. Nf3 {[%emt 0:00:06]} Nc6 {[%emt 0:00:04]} 7. O-O {[%emt 0:00:24]} Be7 {[%emt 0:00:05]} 8. b3 {[%emt 0:00:30]} O-O {[%emt 0:00:21]} 9. Bb2 {[%emt 0:00:06]} Re8 {[%emt 0:00:59]} 10. Rc1 {[%emt 0:00:34]} Bf8 {[%emt 0:00:07]} 11. Ne4 {[%emt 0:04:58]} a5 {[%emt 0:06:06]} (11... f5 $11 12. Nc5 e4) 12. Rxc6 $1 $14 {[%emt 0:05:44]} bxc6 {[%emt 0:00:05]} 13. Nxe5 {[%emt 0:00:07]} Bb7 {[%emt 0:10:26]} 14. e3 {[%emt 0:42:33]} (14. d4 $5 {[%cal Rd1c2]}) 14... f6 {[%emt 0:07:06]} 15. Nxc6 {[%emt 0:11:38]} Qd7 {[%emt 0:11:08]} 16. Qc2 $1 {[%emt 0:01:55]} Nd5 {[%emt 0:02:14]} 17. Rc1 {[%emt 0:01:16]} a4 $1 {[%emt 0:20:28]} 18. bxa4 {[%emt 0:03:03]} Re6 {[%emt 0:05:34]} (18... Kh8 $1 $14) 19. Qb3 {[%emt 0:04:40]} Rxc6 {[%emt 0:05:59]} (19... Bxc6 $2 20. Rxc6 $1 {[%mdl 512]} Rxc6 21. Nxf6+ $1 {[%mdl 512]} gxf6 22. Qxd5+ Qxd5 23. Bxd5+ Re6 24. Bxe6+) 20. Nxf6+ {[%emt 0:10:07]} Rxf6 {[%emt 0:00:56]} 21. Qxb7 {[%emt 0:00:56]} Ra5 {[%emt 0:01:45]} (21... Rd8 {might work better.}) 22. Bxf6 $18 {[%emt 0:00:39]} Nxf6 {[%emt 0:00:41]} 23. Qb3+ {[%emt 0:03:38]} Kh8 {[%emt 0:00:40]} 24. Qb8 {[%emt 0:00:14]} Qd6 {[%emt 0:01:16]} 25. Rc6 {[%emt 0:00:51]} (25. Rxc7 $6 Rxa4 26. Bf1 Ne4 $16) 25... Qb4 {[%emt 0:03:35]} 26. Qxb4 {[%emt 0:00:34]} ({But not} 26. Qxc7 Qxd2 27. Bf3 Kg8 $11) 26... Bxb4 {[%emt 0:00:05]} 27. Rxc7 {[%emt 0:00:13]} h5 {[%emt 0:08:22]} 28. d4 {[%emt 0:00:29]} h4 {[%emt 0:00:16]} 29. gxh4 {[%emt 0:00:48]} Kh7 {[%emt 0:01:02]} 30. Rc4 {[%emt 0:01:13]} Be7 {[%emt 0:01:30]} 31. Bf3 {[%emt 0:00:37]} Ra7 {[%emt 0:02:20]} 32. e4 {[%emt 0:02:41]} Nd7 {[%emt 0:00:05]} 33. h5 {[%emt 0:00:33]} Nb6 {[%emt 0:03:36]} 34. Rc6 {[%emt 0:00:10]} Bd8 {[%emt 0:00:04]} 35. Bd1 {[%emt 0:01:12]} Rc7 {[%emt 0:02:19]} 36. Rxc7 {[%emt 0:00:56]} (36. Rxb6 Rc1 37. Rd6 Rxd1+ 38. Kg2 Bc7 $18) 36... Bxc7 {[%emt 0:00:55]} 37. Kg2 {[%emt 0:01:20]} Kh6 {[%emt 0:01:46]} 38. e5 {[%emt 0:01:48]} Nd5 {[%emt 0:03:37]} 39. Kf3 {[%emt 0:00:26]} Nc3 {[%emt 0:00:51]} 40. Bb3 {[%emt 0:00:14]} Kxh5 {[%emt 0:00:15]} (40... Kg5 $142 41. Ke3 Kf5) 41. e6 $18 {[%emt 0:01:09]} Bd6 {[%emt 0:01:31]} 42. Ke3 {[%emt 0:00:37]} (42. a5 Kg5 43. a4 Kf6 $18) 42... Kg6 {[%emt 0:00:05]} 43. Kd3 {[%emt 0:00:28]} Nb1 {[%emt 0:00:04]} 44. a5 {[%emt 0:00:31]} Na3 {[%emt 0:00:33]} (44... Kf6 $142 45. a6 Bb8) 45. Ba4 {[%emt 0:00:45]} Kf6 {[%emt 0:00:11]} 46. a6 {[%emt 0:00:47]} Bb8 {[%emt 0:00:04]} 47. d5 {[%emt 0:00:15]} g5 {[%emt 0:01:15]} 48. h3 {[%emt 0:00:34]} Ba7 {[%emt 0:00:47]} 49. f3 {[%emt 0:00:28]} Ke7 {[%emt 0:00:12]} 50. Bc6 {[%emt 0:00:38]} Bb6 {[%emt 0:01:06]} 51. Bd7 {[%emt 0:00:30]} Ba7 {[%emt 0:00:47]} 52. Ba4 {[%emt 0:00:31]} Bb6 {[%emt 0:00:18]} (52... Bc5 $142 53. Ke4 Nc4) 53. Kc3 $18 {[%emt 0:00:38]} Nb1+ {[%emt 0:00:41]} 54. Kc2 {[%emt 0:00:20]} Na3+ {[%emt 0:00:05]} 55. Kc3 {[%emt 0:00:14]} Nb1+ $1 {[%emt 0:00:05]} 56. Kb4 {[%emt 0:01:03]} Kd6 {[%emt 0:00:31]} 57. e7 {[%emt 0:00:20]} Kxe7 {[%emt 0:01:26]} 58. Kb5 {[%emt 0:00:01]} Be3 $2 {[%emt 0:00:32] [#]} (58... Bd4) 59. Kc6 $1 $18 {[%emt 0:00:02]} Nc3 {[%emt 0:00:20]} (59... Kd8 $142 60. Bc2 (60. Kb7 Nc3 $14) 60... Nc3) 60. Bb3 $18 {[%emt 0:00:23]} Kd8 {[%emt 0:00:10]} 61. a4 {[%emt 0:01:23]} Kc8 {[%emt 0:00:32] [#]} 62. d6 $1 {[%emt 0:00:33]} Bf2 {[%emt 0:01:01]} 63. Bc2 {[%emt 0:00:45]} Be3 {[%emt 0:00:30]} 64. Bb3 {[%emt 0:00:31]} Bf2 $1 {[%emt 0:00:04]} 65. a5 {[%emt 0:00:24]} Kd8 {[%emt 0:00:55]} 66. Bc4 {[%emt 0:00:28]} Na4 {[%emt 0:00:01]} 67. f4 {[%emt 0:00:28]} gxf4 {[%emt 0:00:28]} 68. h4 {[%emt 0:00:00]} Nc3 {[%emt 0:00:56]} 69. h5 {[%emt 0:00:27]} Ne4 {[%emt 0:00:20]} 70. h6 {[%emt 0:00:12]} Nf6 {[%emt 0:00:29]} 71. Bd3 {[%emt 0:01:04]} Kc8 {[%emt 0:00:46]} 72. h7 {[%emt 0:00:33]} Nxh7 {[%emt 0:00:12]} 73. d7+ {[%emt 0:00:37]} 1-0

[Event "American Cup Champions 2022"]
[Site "Saint Louis"]
[Date "2022.04.20"]
[Round "1.3"]
[White "So, Wesley"]
[Black "Sevian, Samuel"]
[Result "0-1"]
[ECO "E48"]
[WhiteElo "2772"]
[BlackElo "2684"]
[Annotator "TA"]
[PlyCount "72"]
[EventDate "2022.04.20"]
[EventType "k.o."]
[EventCountry "USA"]
[SourceTitle "playchess.com"]
[Source "ChessBase"]
[SourceQuality "1"]
[TimeControl "5400+30"]

{[%evp 11,72,0,0,-5,0,-8,0,-7,-19,-23,-14,-14,-14,-12,0,0,0,0,0,0,0,-37,52,0,11,-39,-51,-41,-47,-57,-66,-117,-106,-115,-36,-229,-232,-232,-220,-236,-228,-228,-200,-216,-231,-208,-205,-210,-210,-195,-220,-216,2,2,2,2,2,-1779,-1758,-1450,-1316,-1316,-1200]} 1. d4 {[%emt 0:00:12]} Nf6 {[%emt 0:00:10]} 2. c4 {[%emt 0:00:07]} e6 {[%emt 0:00:16]} 3. Nc3 {[%emt 0:00:17]} Bb4 {[%emt 0:00:09]} 4. e3 {[%emt 0:00:24]} O-O {[%emt 0:00:19]} 5. Bd3 {[%emt 0:00:22]} d5 {[%emt 0:00:52]} 6. cxd5 {[%emt 0:00:30]} exd5 {[%emt 0:00:18]} 7. a3 {[%emt 0:00:09] E48: Nimzo-Indian: Rubinstein: 5 Bd3 d5 including 6 Ne2, but excluding 6 a3.} Bd6 {[%emt 0:03:11]} 8. Qc2 {[%emt 0:00:09]} c6 {[%emt 0:03:04][%cal Bc7c6,Bc6c5][%mdl 32]} 9. Nge2 {[%emt 0:00:13] The position is equal.} Re8 {[%emt 0:00:35]} 10. Bd2 {[%emt 0:00:24]} Nbd7 {[%emt 0:02:58]} 11. f3 {[%emt 0:01:21]} c5 {[%emt 0:05:25]} 12. h4 {[%emt 0:00:34] [#] 12.0-0-0 is a critical line.} h5 $5 $146 {[%emt 0:16:07][%mdl 8] An interesting novelty.} ({Predecessor:} 12... c4 13. Bf5 Nf8 14. g4 Rb8 15. h5 h6 16. O-O-O b5 17. Rdg1 N8h7 18. f4 Bxf5 19. Qxf5 {1-0 (53) Predke,A (2682)-Donchenko,A (2636) Warsaw 2021}) 13. O-O-O {[%emt 0:00:32]} a6 {[%emt 0:03:16]} 14. g4 {[%emt 0:24:03]} hxg4 {[%emt 0:00:59]} 15. fxg4 {[%emt 0:00:45]} Nxg4 {[%emt 0:02:33]} 16. h5 {[%emt 0:00:11][%cal Oh5h6]} Nf8 {[%emt 0:04:19]} (16... Nxe3 17. Bxe3 Rxe3 18. h6 Rxd3 19. Qxd3 Qg5+ 20. Qd2 Qxd2+ 21. Kxd2 $16) ({Black should play} 16... Ndf6 $15 17. Rdf1 Qe7) 17. Rdg1 {[%emt 0:11:01]} (17. Rdf1 $1 $14) 17... Nf2 {[%emt 0:14:32] White must now prevent ...c4.} 18. dxc5 {[%emt 0:09:35]} ({White should try} 18. h6 $11 g6 19. Rh5) 18... Be5 $15 {[%emt 0:06:18] Active counter play!} 19. h6 {[%emt 0:03:16] hxg7 is the strong threat.} g6 $36 {[%emt 0:00:09][%mdl 2048] Black has some pressure.} 20. h7+ {[%emt 0:23:44]} Kh8 {[%emt 0:00:17]} 21. Rh6 {[%emt 0:00:06]} (21. Rh5 $15) 21... Bg7 {[%emt 0:08:57]} 22. Rh2 {[%emt 0:00:06]} Ng4 {[%emt 0:08:45]} (22... Nxd3+ $17 23. Qxd3 Bf5 24. Qxd5 Qc7) 23. Rh3 $2 {[%emt 0:01:58]} ({Only move:} 23. Rhh1 $1 $15) 23... Ne5 $19 {[%emt 0:01:15]} 24. Rhg3 {[%emt 0:05:10]} Ne6 {[%emt 0:00:20]} (24... Nxh7 25. e4 $11) 25. Nf4 {[%emt 0:02:54]} Nxf4 {[%emt 0:03:45]} ({Don't do} 25... Nxc5 26. Bxg6 fxg6 27. Rxg6 $18 (27. Nxg6+ Nxg6 28. Rxg6 Re7 $11)) 26. exf4 {[%emt 0:00:03]} Nxd3+ {[%emt 0:00:05]} 27. Qxd3 {[%emt 0:01:55]} d4 {[%emt 0:00:05]} 28. Ne4 {[%emt 0:01:23] [#] Strongly threatening Nd6.} Qd5 {[%emt 0:06:17]} 29. Ng5 {[%emt 0:00:03]} Qxc5+ {[%emt 0:02:29]} ({Inferior is} 29... Bf5 30. Qb3 Qxb3 31. Rxb3 $17) 30. Kd1 {[%emt 0:02:41]} Qd5 {[%emt 0:00:05] And now ...Bd7 would win.} 31. Qf3 {[%emt 0:03:52]} Qa2 {[%emt 0:04:06] [#]} (31... Be6 $19 {Hoping for ...Qa2.} 32. Qxd5 Bxd5) 32. Nxf7+ $1 $11 {[%mdl 64] Remove Defender} Qxf7 {[%emt 0:00:04] Chess con chili.} 33. Rxg6 {[%emt 0:00:46]} d3 $1 {[%emt 0:02:58]} (33... Qa2 $2 34. Rxg7 Qb1+ 35. Bc1 $18) 34. Be3 $2 {[%emt 0:01:28][%mdl 8192]} (34. Qxd3 $11 Bf5 35. Rxg7 Qh5+ 36. Kc1 Bxd3 37. Rc7) 34... Qb3+ $19 {[%emt 0:00:17] Black is clearly winning.} 35. Ke1 {[%emt 0:00:03]} d2+ {[%emt 0:00:29]} ({Not} 35... Qxb2 36. Rxg7 Qa1+ 37. Kf2 Qb2+ 38. Ke1 Qc1+ 39. Kf2 Qb2+ 40. Ke1 $11) 36. Kf2 {[%emt 0:01:12]} d1=Q {[%emt 0:00:09] Weighted Error Value: White=0.37/Black=0.17 (very precise)} 0-1

[Event "American Cup Champions 2022"]
[Site "Saint Louis"]
[Date "2022.04.21"]
[Round "1.3"]
[White "Shankland, Sam"]
[Black "Dominguez Perez, Leinier"]
[Result "1/2-1/2"]
[ECO "A56"]
[WhiteElo "2708"]
[BlackElo "2752"]
[Annotator "TA"]
[PlyCount "104"]
[EventDate "2022.04.20"]
[EventType "k.o."]
[EventCountry "USA"]
[SourceTitle "playchess.com"]
[Source "ChessBase"]
[SourceQuality "1"]
[TimeControl "600+5"]

{[%evp 9,104,0,0,0,0,0,0,0,0,0,16,0,21,0,0,0,19,0,0,0,0,0,0,-29,-10,-25,-11,-16,-28,-45,-31,-31,-39,-96,-53,-58,-64,-57,-46,-44,-31,-60,-37,-85,-58,-61,-75,-81,-66,-88,-81,-90,-11,-157,-150,-248,-252,-221,-88,-110,-33,-41,-29,-70,-65,-82,-27,-25,0,0,0,0,0,0,35,0,0,0,0,0,0,0,0,0,0,0,0,0,0,0,0,0,0,0,0,0,0]} 1. c4 {[%emt 0:00:00]} c5 {[%emt 0:00:01]} 2. e3 {[%emt 0:00:01][%cal Be2e3,Be3d4][%mdl 32]} Nf6 {[%emt 0:00:05]} 3. d4 {[%emt 0:00:00]} cxd4 {[%emt 0:00:34]} 4. exd4 {[%emt 0:00:01]} g6 {[%emt 0:00:13]} 5. Nc3 {[%emt 0:00:18]} Bg7 {[%emt 0:00:03]} 6. d5 {[%emt 0:00:33] A56: Czech Benoni.} O-O {[%emt 0:00:07]} 7. Nf3 {[%emt 0:00:05]} e6 $1 {[%emt 0:00:02][%mdl 4] now scores much better than the old 7...d6.} 8. Be2 {[%emt 0:00:11]} exd5 {[%emt 0:00:02]} 9. cxd5 {[%emt 0:00:01]} d6 {[%emt 0:00:07]} 10. O-O {[%emt 0:00:11]} Nbd7 {[%emt 0:00:13]} 11. Be3 {[%emt 0:00:14]} Nc5 {[%emt 0:01:10]} 12. Rc1 {[%emt 0:00:27] [#]} Bd7 $146 {[%emt 0:00:39]} ({Predecessor:} 12... a6 13. b4 Nfe4 14. Bd4 Nxc3 15. Rxc3 Ne4 16. Re3 Re8 17. Bxg7 Kxg7 18. Re1 Nf6 19. Rxe8 Nxe8 {½-½ (25) Janosi,E (2158)-Van der Ploeg,G (2283) LSS email 2009}) 13. Nd2 {[%emt 0:02:05]} Re8 {[%emt 0:00:01]} 14. Nc4 {[%emt 0:00:07]} Nce4 {[%emt 0:00:04]} 15. Nxe4 {[%emt 0:00:44]} Nxe4 {[%emt 0:00:01]} 16. Bd4 {[%emt 0:00:18]} Bb5 {[%emt 0:00:57]} 17. Re1 {[%emt 0:00:34]} Bxc4 {[%emt 0:02:34]} 18. Bxc4 {[%emt 0:00:08]} Rc8 {[%emt 0:01:04]} 19. Bxg7 {[%emt 0:00:47]} Kxg7 {[%emt 0:00:01]} 20. Qd4+ {[%emt 0:00:01]} Nf6 {[%emt 0:00:06]} 21. Bb3 {[%emt 0:01:02]} ({Better is} 21. g3 $15) 21... Rxc1 {[%emt 0:00:28]} 22. Rxc1 {[%emt 0:00:01]} Qa5 {[%emt 0:00:10][%cal Oa5e1]} 23. Kf1 {[%emt 0:00:28] Inhibits Qe1+.} Re4 {[%emt 0:00:25]} 24. Qc3 {[%emt 0:00:00]} Qb5+ {[%emt 0:00:01]} 25. Kg1 {[%emt 0:00:07]} Re5 {[%emt 0:00:18]} 26. Qd4 {[%emt 0:00:22]} (26. g3 $15 {is superior.}) 26... Qa5 {[%emt 0:00:03] ( -> ...Re1+)} 27. Kf1 {[%emt 0:00:12] Prevents Re1+.} h5 {[%emt 0:00:19]} 28. h3 {[%emt 0:00:07]} g5 {[%emt 0:00:56]} ({Don't play} 28... Nxd5 $6 29. Rd1 Nf6 30. Qxd6 $11) 29. Rc3 {[%emt 0:00:52]} Nxd5 {[%emt 0:00:30]} 30. Rc1 {[%emt 0:00:10]} Nf4 {[%emt 0:00:22]} (30... Qb5+ $17 31. Qc4 Qd7) 31. Rd1 {[%emt 0:01:01]} (31. Qxd6 $11 Qb5+ 32. Rc4) 31... Qb5+ $1 $17 {[%emt 0:00:24]} 32. Bc4 {[%emt 0:00:16]} (32. Qc4 $17 {was called for.}) 32... Qc6 $1 $19 {[%emt 0:00:12][%csl Gf4][%cal Rc6g2]} 33. f3 {[%emt 0:00:05][%cal Oh3h4] [#]} Qc5 {[%emt 0:00:01]} (33... h4 $1 $19 {and Black stays clearly on top. Strongly threatening ...f6.} 34. b3 b5) 34. h4 {[%emt 0:00:06]} Qxd4 {[%emt 0:00:19]} ({Black should try} 34... b5 $17 35. Qxc5 Rxc5) 35. Rxd4 $17 {[%emt 0:00:00][%mdl 4096] Endgame KRB-KRN} d5 {[%emt 0:00:04]} 36. hxg5 {[%emt 0:00:04] [#]} Nxg2 $1 {[%emt 0:00:07]} 37. Bb3 {[%emt 0:00:20]} (37. Kxg2 dxc4) 37... Ne3+ {[%emt 0:00:09]} ({Black should play} 37... Rxg5 $17 {...h4 is the strong threat.} 38. Kf2 b6 39. Bxd5 {[#]} Nh4 $1) 38. Kf2 $11 {[%emt 0:00:01]} b6 {[%emt 0:00:15]} 39. Rd3 $1 {[%emt 0:00:40]} Nc4 {[%emt 0:00:01]} 40. f4 {[%emt 0:00:04]} Re4 {[%emt 0:00:07]} ({Don't take} 40... Nxb2 41. Rd2 Re4 42. Rxb2 Rxf4+ 43. Ke3 Re4+ 44. Kf3 $16) 41. Kf3 {[%emt 0:00:03]} b5 {[%emt 0:00:06]} (41... Re1 $5 {[%cal Re1f1]}) 42. Bxc4 {[%emt 0:00:14]} (42. Rxd5 $5 {[%cal Rf3e4]} Re3+ 43. Kf2 $16) 42... Rxc4 {[%emt 0:00:02] The position is equal.} 43. Rxd5 $14 {[%emt 0:00:03] KR-KR} a6 {[%emt 0:00:05]} 44. Rd6 {[%emt 0:00:04]} a5 {[%emt 0:00:03]} 45. Rd5 {[%emt 0:00:19]} Rb4 {[%emt 0:00:02]} 46. b3 {[%emt 0:00:03]} a4 {[%emt 0:00:03]} 47. Rd3 {[%emt 0:00:02]} axb3 {[%emt 0:00:02]} 48. axb3 {[%emt 0:00:01]} Kg6 {[%emt 0:00:10]} 49. Rd6+ {[%emt 0:00:01]} Kg7 {[%emt 0:00:02]} 50. Rd3 {[%emt 0:00:00]} Kg6 {[%emt 0:00:02]} 51. Rd6+ {[%emt 0:00:08]} Kg7 {[%emt 0:00:01]} 52. Rd3 {[%emt 0:00:01]} Kg6 {[%emt 0:00:07] Weighted Error Value: White=0.18 (very precise) /Black=0.15 (very precise)} 1/2-1/2

[Event "American Cup Champions 2022"]
[Site "Saint Louis"]
[Date "2022.04.21"]
[Round "1.3"]
[White "Xiong, Jeffery"]
[Black "Caruana, Fabiano"]
[Result "1/2-1/2"]
[ECO "D00"]
[WhiteElo "2686"]
[BlackElo "2792"]
[Annotator "TA"]
[PlyCount "83"]
[EventDate "2022.04.20"]
[EventType "k.o."]
[EventCountry "USA"]
[SourceTitle "playchess.com"]
[Source "ChessBase"]
[SourceQuality "1"]
[TimeControl "600+5"]

{[%evp 9,83,8,6,0,0,0,0,0,0,0,0,0,0,0,0,0,0,0,0,0,0,0,0,-2,-2,-2,0,-6,0,0,0,-10,16,0,0,0,0,0,-2,-3,0,0,0,0,0,0,0,0,0,0,0,0,0,0,0,0,0,0,0,0,0,0,0,0,0,0,0,0,0,0,0,0,0,0,0,0]} 1. d4 {[%emt 0:00:02]} Nf6 {[%emt 0:00:01]} 2. Bg5 {[%emt 0:00:02]} d5 {[%emt 0:00:09]} 3. e3 {[%emt 0:00:03]} c5 {[%emt 0:00:07]} 4. Bxf6 {[%emt 0:00:03]} gxf6 {[%emt 0:00:02]} 5. dxc5 {[%emt 0:00:02]} Nc6 {[%emt 0:00:08] The position is equal.} 6. a3 {[%emt 0:00:03] D00: 1 d4 d5: Unusual lines.} e6 {[%emt 0:01:24]} 7. b4 {[%emt 0:00:03]} a5 {[%emt 0:00:07]} 8. Nd2 {[%emt 0:00:04]} axb4 {[%emt 0:00:28]} 9. axb4 {[%emt 0:00:03]} Rxa1 {[%emt 0:00:02]} 10. Qxa1 {[%emt 0:00:02]} Nxb4 {[%emt 0:00:02]} 11. Qa4+ {[%emt 0:00:02]} Nc6 {[%emt 0:00:01] [#]} 12. Nb3 $146 {[%emt 0:00:03]} ({Predecessor:} 12. Bb5 Bd7 13. Nb3 Qc7 14. Ne2 Be7 15. O-O O-O 16. Ng3 Ne5 17. Nh5 Bxb5 18. Qxb5 {½-½ (31) Caron,S (2411)-Sherwood,R (2416) ICCF email 2021}) 12... Bg7 {[%emt 0:00:27]} 13. Bb5 {[%emt 0:00:04]} Bd7 {[%emt 0:00:39]} 14. Ne2 {[%emt 0:01:35]} O-O {[%emt 0:00:02]} 15. O-O {[%emt 0:00:03]} f5 {[%emt 0:00:01]} 16. c4 {[%emt 0:02:07]} dxc4 {[%emt 0:00:23]} 17. Qxc4 {[%emt 0:00:02]} Qc7 {[%emt 0:00:49]} 18. Qa4 {[%emt 0:01:02]} Rd8 {[%emt 0:00:32]} 19. Nf4 $1 {[%emt 0:00:32]} Ne5 {[%emt 0:00:17]} 20. Rb1 {[%emt 0:00:25]} Ng4 {[%emt 0:01:26]} 21. h3 {[%emt 0:00:07]} Nf6 {[%emt 0:00:03]} 22. Bxd7 {[%emt 0:00:20]} Rxd7 {[%emt 0:00:36]} 23. Qa8+ {[%emt 0:00:45]} Rd8 {[%emt 0:00:32]} 24. Qa5 {[%emt 0:00:02]} Qe7 {[%emt 0:00:16]} 25. Nd4 {[%emt 0:00:36][%cal Ob1b7]} Rc8 {[%emt 0:00:19]} 26. Nd3 {[%emt 0:00:08] Hoping for Qa7.} Ne4 {[%emt 0:00:18]} 27. Qa7 {[%emt 0:00:11][%cal Oc5c6] Black must now prevent c6!} Nxc5 {[%emt 0:00:42]} 28. Rc1 {[%emt 0:01:22][%cal Rc1c5]} Bf8 {[%emt 0:00:02]} 29. Rxc5 {[%emt 0:00:25]} Rxc5 {[%emt 0:00:00]} 30. Nxc5 {[%emt 0:00:02]} Qxc5 {[%emt 0:00:02]} 31. Qxb7 {[%emt 0:00:02]} f4 {[%emt 0:00:13]} 32. Qf3 {[%emt 0:00:44]} fxe3 {[%emt 0:00:42]} 33. Qxe3 {[%emt 0:00:04]} Bg7 {[%emt 0:00:06]} 34. Nf3 {[%emt 0:00:02]} Qxe3 {[%emt 0:00:02]} 35. fxe3 $11 {[%emt 0:00:02][%mdl 4096] Endgame KB-KN} f5 {[%emt 0:00:08]} 36. g4 {[%emt 0:00:02]} Kf7 {[%emt 0:00:17]} 37. Kf2 {[%emt 0:00:09]} Kg6 {[%emt 0:00:06]} 38. Nh4+ {[%emt 0:00:13]} Kg5 {[%emt 0:00:04]} 39. Nf3+ {[%emt 0:00:03]} Kg6 {[%emt 0:00:01]} 40. Nh4+ {[%emt 0:00:03]} Kg5 {[%emt 0:00:01]} 41. Nf3+ {[%emt 0:00:02]} Kg6 {[%emt 0:00:02]} 42. Nh4+ {[%emt 0:00:02] An even fight not without its subleties.  Weighted Error Value: White=0.01 (flawless) /Black=0.01 (flawless)} 1/2-1/2

[Event "American Cup Champions 2022"]
[Site "Saint Louis"]
[Date "2022.04.21"]
[Round "1.3"]
[White "Robson, Ray"]
[Black "Aronian, Levon"]
[Result "0-1"]
[ECO "A29"]
[WhiteElo "2676"]
[BlackElo "2772"]
[Annotator "TA"]
[PlyCount "96"]
[EventDate "2022.04.20"]
[EventType "k.o."]
[EventCountry "USA"]
[SourceTitle "playchess.com"]
[Source "ChessBase"]
[SourceQuality "1"]
[TimeControl "600+5"]

{[%evp 16,96,0,0,3,5,0,0,8,0,9,8,9,0,0,0,0,0,0,0,0,0,0,0,0,0,0,0,0,0,0,-65,-55,-389,-386,-666,-667,-662,-664,-656,-650,-850,-573,-837,-514,-541,-286,-287,-281,-622,-626,-535,-593,-628,-612,-635,-633,-633,-627,-617,-605,-656,-648,-1041,-1042,-1018,-988,-943,-910,-29969,-29969,-29970,-29971,-29971,-29975,-29975,-29976,-29974,-29975,-29968,-29959,-5097,-1762]} 1. c4 {[%emt 0:00:03]} Nf6 {[%emt 0:00:01]} 2. g3 {[%emt 0:00:03]} e5 {[%emt 0:00:02]} 3. Bg2 {[%emt 0:00:02]} d5 {[%emt 0:00:01]} 4. cxd5 {[%emt 0:00:03]} Nxd5 {[%emt 0:00:01]} 5. Nc3 {[%emt 0:00:05]} Nb6 {[%emt 0:00:01]} 6. Nf3 {[%emt 0:00:03]} Nc6 {[%emt 0:00:01]} 7. O-O {[%emt 0:00:03]} Be7 {[%emt 0:00:02]} 8. b3 {[%emt 0:00:05]} O-O {[%emt 0:00:02]} 9. Bb2 {[%emt 0:00:02][%cal Od2d4]} Re8 {[%emt 0:00:01] A29: English Opening: Four Knights Variation with 4 g3.} 10. Rc1 {[%emt 0:00:06][%cal Od2d4]} Bf5 {[%emt 0:00:02]} 11. d3 {[%emt 0:01:28] Prevents e4.} Qd7 {[%emt 0:00:02] The position is equal.} 12. Ne4 {[%emt 0:00:21]} f6 {[%emt 0:00:10]} 13. Qc2 {[%emt 0:00:57]} Bh3 {[%emt 0:00:17]} 14. Rfd1 {[%emt 0:00:24]} Bxg2 {[%emt 0:00:03]} 15. Kxg2 {[%emt 0:00:03]} Qe6 {[%emt 0:00:14]} 16. d4 {[%emt 0:01:17]} exd4 {[%emt 0:00:02]} 17. Nxd4 {[%emt 0:00:11]} Nxd4 {[%emt 0:00:02]} 18. Rxd4 {[%emt 0:00:16]} ({Much weaker is} 18. Bxd4 Ba3 19. Nc5 Qc6+ 20. e4 Bxc1 21. Rxc1 Nd7 22. Nxd7 Qxd7 23. Qc4+ Kh8 $19) 18... Rad8 {[%emt 0:00:02] [#]} 19. Rcd1 $146 {[%emt 0:01:11]} ({Predecessor:} 19. Rxd8 Rxd8 20. Nc3 Nd5 21. Rd1 {½-½ (21) Sikorsky,H (2529)-Mende,I (2440) ICCF email 2018}) 19... Rxd4 {[%emt 0:00:04]} 20. Rxd4 {[%emt 0:00:19]} c5 {[%emt 0:00:29]} 21. Rd2 {[%emt 0:00:55]} ({But not} 21. Nxc5 $2 Qc6+ 22. Qe4 Bxc5 $19) 21... c4 {[%emt 0:00:11]} 22. Nc3 {[%emt 0:00:19]} Bb4 {[%emt 0:00:08]} 23. Kg1 {[%emt 0:00:57]} (23. bxc4 $11 Nxc4 24. Rd4) 23... Rc8 $1 $15 {[%emt 0:00:25]} 24. Rd4 $2 {[%emt 0:02:04][%mdl 8192] White does not recover from this.} (24. e4 $1 $15) 24... cxb3 $19 {[%emt 0:00:53]} 25. Qe4 {[%emt 0:00:23]} (25. axb3 Bxc3 26. Bxc3) 25... Qxe4 {[%emt 0:01:35]} 26. Nxe4 {[%emt 0:00:01] [#]} bxa2 $1 {[%emt 0:01:10][%cal Ob4a3]} 27. Rxb4 {[%emt 0:00:02] Black must now prevent Nc3.} Rc2 {[%emt 0:00:02][%cal Oc2b2] Threatens to win with ...Rxb2!} 28. Bd4 {[%emt 0:00:10]} f5 {[%emt 0:00:31]} 29. Ng5 {[%emt 0:00:15]} Rd2 {[%emt 0:00:02][%cal Od2d4] Strongly threatening ...Rxd4!} 30. Bc3 {[%emt 0:00:14]} Rd1+ {[%emt 0:00:12]} 31. Kg2 {[%emt 0:00:02] [#]} h6 $1 {[%emt 0:00:02]} 32. Ne6 $2 {[%emt 0:00:14]} (32. Rb3 Rc1 33. Bd4) 32... Nd5 $1 {[%emt 0:00:09][%csl LRb4,LRc3]} 33. Rxb7 {[%emt 0:00:05] And now Be5 would win.} Nxc3 {[%emt 0:00:02]} 34. Rxg7+ {[%emt 0:00:05][%mdl 4096] Endgame KRN-KRN} Kh8 {[%emt 0:00:02]} 35. Rxa7 {[%emt 0:00:06]} a1=Q {[%emt 0:00:03]} 36. Rxa1 {[%emt 0:00:01]} Rxa1 {[%emt 0:00:02]} 37. Nd4 {[%emt 0:00:06]} Kh7 {[%emt 0:00:08]} 38. Kf3 {[%emt 0:00:04]} Kg6 {[%emt 0:00:02]} 39. h4 {[%emt 0:00:04]} h5 {[%emt 0:00:06]} 40. Ne6 {[%emt 0:00:06]} Nd5 {[%emt 0:00:03]} 41. Nd4 {[%emt 0:00:07]} Kf6 {[%emt 0:00:01]} 42. e3 {[%emt 0:00:06]} Ra2 {[%emt 0:00:03]} 43. Ne2 {[%emt 0:00:02]} Rd2 {[%emt 0:00:08]} 44. Ng1 {[%emt 0:00:07]} Ke5 {[%emt 0:00:11]} 45. Nh3 {[%emt 0:00:03]} Nf6 {[%emt 0:00:03]} 46. Ng1 {[%emt 0:00:06]} Ng4 {[%emt 0:00:04][%csl Gg4][%cal Rd2f2]} 47. Nh3 {[%emt 0:00:03]} Ra2 {[%emt 0:00:02]} 48. Kg2 {[%emt 0:00:06]} Nxe3+ {[%emt 0:00:07] Weighted Error Value: White=1.06/Black=0.25 (precise)} 0-1